fUST/lending_fUST_20240628
["ID","MTS","AMOUNT","RATE_DAILY","PERIOD"]
[330506017,1719527447896,-500.0,0.00043835,120]
[330506018,1719527447904,-573.02,0.00043835,120]
[330506019,1719527447914,-1380.68,0.00043835,120]
[330506020,1719527447924,-449.06445551,0.00043835,120]
[330506021,1719527447933,-500.0,0.00043835,120]
[330506022,1719527447943,-500.0,0.00043835,30]
[330506024,1719527447952,-500.0,0.00043835,120]
[330506026,1719527447961,-616.67983415,0.00043835,120]
[330506027,1719527447970,-500.0,0.00043835,2]
[330506029,1719527447980,-500.0,0.00043835,120]
[330506031,1719527447989,-518.34,0.00043835,120]
[330506033,1719527447998,-928.91,0.00043835,120]
[330506035,1719527448012,-500.0,0.00043835,120]
[330506037,1719527448022,-500.0,0.00043835,2]
[330506039,1719527448031,-504.09263922,0.00043835,7]
[330506040,1719527448040,-500.0,0.00043835,120]
[330506042,1719527448050,-500.0,0.00043835,120]
[330506044,1719527448060,-3336.34,0.00043835,120]
[330506046,1719527448069,-500.0,0.00043835,120]
[330506048,1719527448078,-524.92408572,0.00043835,120]
[330506049,1719527448089,-500.0,0.00043835,120]
[330506051,1719527448098,-500.0,0.00043835,120]
[330506053,1719527448107,-500.0,0.00043835,120]
[330506055,1719527448116,-500.0,0.00043835,120]
[330506056,1719527448125,-500.0,0.00043835,120]
[330506057,1719527448134,-500.0,0.00043835,120]
[330506058,1719527448143,-666.9,0.00043835,120]
[330506059,1719527448153,-750.08,0.00043835,120]
[330506060,1719527448163,-577.43,0.00043835,120]
[330506061,1719527448172,-502.95957678,0.00043835,120]
[330506062,1719527448181,-1095.85,0.00043835,120]
[330506063,1719527448191,-502.94,0.00043835,120]
[330506064,1719527448200,-786.88,0.00043835,120]
[330506065,1719527448209,-11145.0,0.00043835,120]
[330506066,1719527448218,-851.99,0.00043835,120]
[330506068,1719527448227,-151.0,0.00043835,14]
[330506070,1719527448236,-151.0,0.00043835,14]
[330506072,1719527448245,-201.895089,0.00043835,14]
[330506082,1719527448355,-939.45,0.00043835,120]
[330506084,1719527448365,-500.0,0.00043835,120]
[330506085,1719527448374,-500.0,0.00043835,120]
[330506087,1719527448383,-500.0,0.00043835,120]
[330506088,1719527448392,-500.0,0.00043835,120]
[330506089,1719527448401,-500.0,0.00043835,120]
[330506090,1719527448412,-500.0,0.00043835,120]
[330506091,1719527448421,-500.0,0.00043835,120]
[330506093,1719527448429,-168.55827952,0.00043835,120]
[330506095,1719527448438,-500.0,0.00043835,120]
[330506096,1719527448447,-1523.03608726,0.00043835,120]
[330506102,1719527838592,262.3278843,0.0001,2]
[330506103,1719527838628,14527.91315295,0.0001,2]
[330506104,1719527911345,231.72826498,0.00012121,2]
[330506105,1719527924912,587.56918089,0.00012121,2]
[330506106,1719527968697,154.82195475,0.0001,2]
[330506107,1719527998683,154.82195475,0.00012121,2]
[330506108,1719528018682,3923.20622618,0.00012121,2]
[330506109,1719528027874,155.15799191,0.00012121,2]
[330506110,1719528040193,155.29845848,0.00012121,2]
[330506111,1719528248709,154.82195475,0.00012121,2]
[330506112,1719528330531,154.83742071,9.999e-05,2]
[330506113,1719528361715,154.82195475,0.00012121,2]
[330506114,1719528393279,209.35974365,9.999e-05,2]
[330506115,1719528426111,-154.82195475,0.00014692,2]
[330506116,1719528426134,-1568.73091691,0.00014794,2]
[330506117,1719528426155,-806.30212307,0.00014794,2]
[330506118,1719528445108,-317.68088806,0.00014794,2]
[330506119,1719528445139,-157.53820426,0.00014794,2]
[330506120,1719528452261,-1793.75251384,0.00014794,2]
[330506121,1719528452283,-300.0,0.00019996,2]
[330506122,1719528452303,-1518.66784195,0.00019998,2]
[330506123,1719528549124,-3075.27372923,0.00016255,2]
[330506124,1719528549147,-300.0,0.00017931,2]
[330506125,1719528549177,-229.34773259,0.00017932,2]
[330506126,1719528549200,-154.83742071,0.00017932,2]
[330506127,1719528549223,-8800.794695,0.00019998,2]
[330506128,1719528553434,-1693.16634661,0.00019998,2]
[330506129,1719528554090,-1787.06590727,0.00019998,2]
[330506130,1719528554120,-154.82195475,0.00019998,2]
[330506131,1719528554151,-166.019449,0.00021096,2]
[330506132,1719528559106,-163.751651,0.00023954,2]
[330506133,1719528559127,-199.7330739,0.00024109,2]
[330506134,1719528559147,-1997.2016866,0.00024827,2]
[330506135,1719528559174,-29616.9128373,0.00025869,2]
[330506136,1719528561108,-352.91785435,0.00028339,2]
[330506137,1719528561129,-152.47480697,0.00028439,2]
[330506138,1719528561150,-156.27759996,0.00028582,2]
[330506139,1719528561177,-156.27759996,0.00029376,2]
[330506140,1719528561200,-351.64071504,0.00029944,2]
[330506141,1719528561222,-360.82725689,0.00030044,2]
[330506142,1719528584245,459.0,0.0002424,2]
[330506143,1719528584266,1557.96775232,0.0002424,2]
[330506144,1719528605246,154.82195475,0.0002424,2]
[330506189,1719528632851,-2373.81870167,0.00030044,2]
[330506195,1719528638286,-8437.62165256,0.00030044,2]
[330506196,1719528638298,-13727.73238888,0.00030044,2]
[330506197,1719528638308,-261.417452,0.00031019,2]
[330506198,1719528638317,-152.47480697,0.00032563,7]
[330506199,1719528638327,-153.0,0.00033345,2]
[330506200,1719528638337,-153.0,0.00033345,2]
[330506201,1719528638346,-153.0,0.00033345,2]
[330506202,1719528638356,-153.0,0.00033345,2]
[330506203,1719528638365,-153.0,0.00033365,2]
[330506204,1719528638374,-153.0,0.00033365,2]
[330506205,1719528638385,-153.0,0.00033365,2]
[330506206,1719528638399,-6195.17149251,0.00033832,3]
[330506207,1719528638408,-9428.85894243,0.00033842,60]
[330506208,1719528638420,-484.95531122,0.00033842,60]
[330506214,1719528640279,-32903.9632457,0.00033842,60]
[330506215,1719528640289,-9912.50941378,0.00034421,4]
[330506216,1719528640299,-2854.04613147,0.00034899,4]
[330506217,1719528640309,-2416.50301873,0.00035292,4]
[330506218,1719528640318,-2040.5580749,0.00035292,2]
[330506219,1719528640327,-156.27759996,0.00036104,7]
[330506220,1719528640337,-152.47480697,0.00036566,7]
[330506221,1719528640346,-152.47480697,0.0003672,7]
[330506222,1719528640356,-156.27759996,0.00037617,7]
[330506223,1719528640365,-166.019449,0.00037652,2]
[330506224,1719528640375,-1487.05343949,0.00037899,4]
[330506225,1719528640385,-817.36545723,0.00037999,4]
[330506226,1719528640399,-2084.52667748,0.00039164,7]
[330506241,1719528643368,-1130.86704473,0.00039164,7]
[330506242,1719528643378,-154.83742071,0.00039167,4]
[330506243,1719528643389,-176.40354965,0.00039167,4]
[330506244,1719528643399,-164.83119203,0.00039167,4]
[330506245,1719528643409,-157.2632129,0.00039177,4]
[330506246,1719528643418,-58.94346336,0.00039177,4]
[330506247,1719528643431,-243.64635778,0.00039177,4]
[330506248,1719528643440,-166.22247411,0.00039177,4]
[330506249,1719528643575,-156.27759996,0.00039975,7]
[330506250,1719528643584,-401.50781608,0.00039994,4]
[330506251,1719528643594,-225.45157575,0.00039994,4]
[330506252,1719528643603,-154.83742071,0.00039994,4]
[330506253,1719528643612,-309.65937546,0.00039999,4]
[330506254,1719528643621,-146.72080315,0.00039999,4]
[330506255,1719528643633,-8.1011516,0.00039999,4]
[330506256,1719528643641,-154.82195475,0.00039999,4]
[330506257,1719528643650,-507.0,0.0004,120]
[330506258,1719528643659,-154.83742071,0.00040278,4]
[330506259,1719528643668,-300.32661389,0.00040807,4]
[330506260,1719528643677,-3818.62521746,0.00041075,4]
[330506262,1719528643861,-2376.54627505,0.00041075,4]
[330506263,1719528643870,-1039.77,0.00041085,3]
[330506264,1719528643879,-501.01,0.00041095,120]
[330506265,1719528643888,-3197.32,0.00041095,120]
[330506266,1719528643898,-383.99679095,0.00041095,120]
[330506276,1719528646506,-116.00320905,0.00041095,120]
[330506277,1719528646517,-1929.28639647,0.00041095,21]
[330506283,1719529641238,-242.09977283,0.00018799,2]
[330506284,1719529642978,936.33523994,9.999e-05,2]
[330506285,1719529648163,-99.68093415,0.00018799,2]
[330506286,1719529648185,-161.4997203,0.00021096,2]
[330506287,1719529648206,-166.019449,0.00021096,2]
[330506288,1719529648228,-181.88159609,0.0002243,2]
[330506289,1719529648250,-300.0,0.00028282,2]
[330506290,1719529648272,-300.0,0.00028282,2]
[330506291,1719529648294,-610.22563463,0.00028283,2]
[330506292,1719529649108,-13976.45728082,0.00028283,2]
[330506293,1719529652094,-202.88634143,0.00028283,2]
[330506294,1719529689055,290.84069418,0.0001212,2]
[330506295,1719529692799,293.07017019,0.0001212,2]
[330506296,1719529694352,2024.0354369,9.999e-05,2]
[330506297,1719529696274,233.54634246,0.0001212,2]
[330506298,1719529697194,13850.50453643,0.0001212,2]
[330506299,1719529701893,396.93154863,0.0001212,2]
[330506300,1719529705703,2099.40710865,0.0001212,2]
[330506301,1719529706510,16224.55368214,9.999e-05,2]
[330506302,1719529708778,273.37336231,9.9e-05,2]
[330506303,1719529713235,723.78639686,0.0001212,2]
[330506304,1719529713824,11118.98907716,0.0001212,2]
[330506305,1719529716697,273.37336231,9.9e-05,2]
[330506306,1719529717851,154.82195475,0.0001212,2]
[330506307,1719529724882,273.37336231,9.9e-05,2]
[330506308,1719529733425,273.37336231,9.9e-05,2]
[330506309,1719529742278,273.37336231,9.9e-05,2]
[330506310,1719529746105,-300.0,0.0001469,2]
[330506311,1719529746257,-155.25864343,0.00014691,2]
[330506312,1719529746285,-155.01503776,0.00014691,2]
[330506313,1719529746313,-5056.58018151,0.00014691,2]
[330506314,1719529746336,-420.0,0.00016159,2]
[330506315,1719529746359,-155.0,0.00022022,2]
[330506316,1719529748122,-354.98144447,0.00028283,2]
[330506317,1719529748558,154.94758269,0.00014691,2]
[330506318,1719529748629,-250.0,0.00028283,2]
[330506319,1719529750352,29.17907143,9.9e-05,2]
[330506320,1719529750390,244.19429088,9.9e-05,2]
[330506321,1719529754103,-531.32438802,0.00014691,2]
[330506322,1719529754126,-3333.03346089,0.00028283,2]
[330506323,1719529756534,179.71396344,0.00014691,2]
[330506324,1719529757119,35.42882037,0.00014691,2]
[330506325,1719529758721,273.37336231,9.9e-05,2]
[330506326,1719529761113,-19316.54266155,0.00014691,2]
[330506327,1719529761132,-159.71453487,0.00014691,2]
[330506328,1719529762610,155.40839441,0.00014691,2]
[330506329,1719529765904,292.39052728,0.00014691,2]
[330506330,1719529766624,273.37336231,9.9e-05,2]
[330506331,1719529770546,157.19006853,0.00012,2]
[330506332,1719529770916,154.82195475,0.00014691,2]
[330506333,1719529772774,154.82195475,0.00014691,2]
[330506334,1719529774358,309.61298378,0.00012,2]
[330506335,1719529775192,273.37336231,9.9e-05,2]
[330506336,1719529779342,418.62985019,0.00012,2]
[330506337,1719529783680,273.37336231,9.9e-05,2]
[330506338,1719529785840,154.82195475,0.00012,2]
[330506339,1719529786789,817.01199646,0.00012,2]
[330506340,1719529786809,153.92923706,0.00012,2]
[330506341,1719529786829,163.724839,0.00012,2]
[330506342,1719529786863,3555.70101397,0.00012,2]
[330506343,1719529791878,222.80034585,9.9e-05,2]
[330506344,1719529814593,530.89739076,0.00012,2]
[330506345,1719529827174,14393.79605785,0.00012,2]
[330506364,1719529832484,-398.8,0.00028283,2]
[330506366,1719529832497,-5773.61583776,0.00028283,2]
[330506368,1719529832507,-188.2908576,0.00028338,2]
[330506370,1719529832518,-154.11845093,0.00028613,2]
[330506371,1719529832527,-2863.1701948,0.00029734,2]
[330506372,1719529832538,-2940.4998837,0.00029823,2]
[330506374,1719529832786,230.03640379,0.00012,2]
[330506375,1719529837875,292.39052728,0.00012,2]
[330506376,1719529838302,-150.0,0.00026183,2]
[330506377,1719529838312,-6664.68224886,0.00029823,2]
[330506378,1719529838322,-154.94520474,0.000299,2]
[330506379,1719529838332,-181.757941,0.00029958,2]
[330506380,1719529838342,-250.0,0.00030744,2]
[330506381,1719529838355,-154.11845094,0.00031047,7]
[330506382,1719529838365,-150.0,0.00031183,2]
[330506383,1719529838375,-166.31562445,0.00032658,7]
[330506384,1719529838384,-166.31562445,0.00032756,7]
[330506385,1719529838394,-153.0,0.00033407,2]
[330506386,1719529838404,-153.0,0.00033407,2]
[330506387,1719529838415,-153.0,0.00033407,2]
[330506388,1719529838424,-153.0,0.00033407,2]
[330506389,1719529838434,-153.0,0.00033407,2]
[330506390,1719529838444,-153.0,0.00033407,2]
[330506391,1719529838454,-153.0,0.00033407,2]
[330506392,1719529838463,-10566.16869568,0.00033842,4]
[330506393,1719529838472,-166.31562445,0.00033897,7]
[330506394,1719529838481,-468.99,0.00034553,3]
[330506396,1719529838490,-500.0,0.00034561,7]
[330506397,1719529838500,-500.0,0.00034561,7]
[330506398,1719529838510,-611.60911666,0.00034561,7]
[330506399,1719529838519,-500.0,0.00034561,7]
[330506400,1719529838529,-500.0,0.00034561,7]
[330506401,1719529838539,-48466.7755351,0.00034562,2]
[330506402,1719529838548,-4131.84570146,0.00034623,4]
[330506403,1719529838558,-2854.04613147,0.00034672,4]
[330506404,1719529838568,-156.774861,0.00034995,2]
[330506405,1719529838578,-162.125942,0.00034995,2]
[330506406,1719529838587,-166.31562445,0.00035062,7]
[330506407,1719529838597,-281.312572,0.00035192,2]
[330506408,1719529838606,-156.774861,0.00035432,2]
[330506409,1719529838616,-166.31562445,0.00035507,7]
[330506410,1719529838626,-162.125942,0.00035578,2]
[330506411,1719529838635,-156.774861,0.0003587,2]
[330506412,1719529838645,-937.98,0.00035923,3]
[330506413,1719529838654,-1583.26881397,0.00035999,14]
[330506414,1719529838664,-162.125942,0.00036162,2]
[330506415,1719529838673,-156.774861,0.00036307,2]
[330506416,1719529838683,-281.312572,0.00036643,2]
[330506417,1719529838694,-162.125942,0.00036745,2]
[330506418,1719529838703,-156.774861,0.00036745,2]
[330506419,1719529838714,-703.51,0.00037066,3]
[330506420,1719529838723,-234.5,0.00037076,3]
[330506421,1719529838733,-300.08,0.00037355,3]
[330506422,1719529838743,-937.98,0.00037355,3]
[330506423,1719529838752,-1607.69686111,0.00037365,7]
[330506424,1719529838762,-837.87,0.00037491,3]
[330506425,1719529838772,-1005.45,0.00037501,3]
[330506426,1719529838781,-1071.73,0.00037511,3]
[330506427,1719529838791,-5282.41580836,0.00037521,2]
[330506428,1719529838801,-842.54666328,0.00037899,4]
[330506429,1719529838810,-281.312572,0.00038094,2]
[330506430,1719529838820,-625.9948816,0.00038264,4]
[330506431,1719529838829,-469.0,0.00038446,3]
[330506432,1719529838840,-166.31562445,0.00038613,7]
[330506433,1719529838850,-600.16,0.00038725,3]
[330506434,1719529838860,-1875.96,0.00038725,3]
[330506435,1719529838869,-309.67484142,0.00038999,4]
[330506436,1719529838878,-893.11,0.00039167,3]
[330506437,1719529838888,-155.3707062,0.00039177,4]
[330506438,1719529838898,-307.67501459,0.00039177,4]
[330506439,1719529838908,-281.312572,0.00039544,2]
[330506440,1719529838918,-500.0,0.0004,120]
[330506441,1719529838928,-1466.84,0.00040127,3]
[330506442,1719529838937,-153.0,0.00040137,2]
[330506443,1719529838947,-166.31562445,0.00040627,30]
[330506444,1719529838958,-166.31562445,0.0004079,30]
[330506445,1719529838968,-2546.84600494,0.000408,60]
[330506446,1719529838978,-269.83314409,0.00040923,30]
[330506447,1719529838987,-209.91297119,0.00040995,2]
[330506448,1719529839127,-71.39960081,0.00040995,2]
[330506449,1719529839137,-1132.10242051,0.00041085,4]
[330506508,1719529846994,-5504.59787136,0.00041085,4]
[330506510,1719529861568,164.83119203,0.00012,2]
[330506511,1719529863908,817.36545723,0.00012,2]
[330506512,1719529870041,780.41127043,0.00012,2]
[330506513,1719529874570,3005.0,0.000225,30]
[330506514,1719529875048,287.50463642,0.00012,2]
[330506516,1719530140782,250.24655234,9.999e-05,2]
[330506517,1719530149156,2098.64128674,0.00012,2]
[330506518,1719530193435,292.39052728,0.00012,2]
[330506519,1719530293990,268.13407278,9.999e-05,7]
[330506520,1719530349209,4760.0,0.000225,30]
[330506521,1719530354431,268.13407278,0.0001212,7]
[330506523,1719530469944,268.13407278,9.999e-05,7]
[330506524,1719530571709,524.47181177,9.999e-05,2]
[330506525,1719530574932,386.9461313,9.999e-05,7]
[330506526,1719530834159,-273.26600219,0.00014545,2]
[330506527,1719530834182,-1292.84118444,0.00014794,2]
[330506528,1719530839155,-831.38457913,0.00014794,2]
[330506529,1719530839176,-90.84156577,0.00014794,2]
[330506530,1719530852097,-459.0,0.00014794,2]
[330506531,1719530863937,12744.02731257,0.0001212,2]
[330506532,1719530863963,9746.95962577,0.0001212,2]
[330506533,1719530903726,-744.11826144,0.00014794,2]
[330506534,1719530903768,-744.11826144,0.00014794,2]
[330506535,1719530903857,-259.69521652,0.00014794,2]
[330506536,1719530928995,-209.67201711,0.00014794,2]
[330506537,1719530929026,-569.40487912,0.00014794,2]
[330506538,1719530929060,-779.07689623,0.00014794,2]
[330506539,1719530929104,-182.47666824,0.00014794,2]
[330506540,1719530947078,-1544.31528564,0.00014794,2]
[330506541,1719530947101,-4979.97352357,0.00014794,2]
[330506542,1719530947120,-1284.46803157,0.00014794,2]
[330506543,1719530947141,-181.7904396,0.00014794,2]
[330506544,1719530947164,-389.32318589,0.00014911,2]
[330506545,1719530947187,-17231.68409106,0.00014998,2]
[330506546,1719530947212,-250.0,0.00015011,2]
[330506547,1719530947234,-280.0654976,0.00015363,2]
[330506548,1719530947255,-221.587696,0.00015912,2]
[330506549,1719530947280,-4921.5135512,0.00016228,2]
[330506550,1719530947301,-237.4023889,0.00016228,2]
[330506551,1719530947324,-701.5828582,0.00016255,2]
[330506552,1719530947346,-2490.56101265,0.00016255,4]
[330506553,1719530953107,-635.54810645,0.00016255,4]
[330506554,1719530953128,-784.73967311,0.00018,2]
[330506555,1719530953149,-2319.1706397,0.00018023,2]
[330506556,1719530953173,-163.7248403,0.00019178,2]
[330506557,1719530953198,-290.17879074,0.00019622,2]
[330506558,1719530953221,-6225.64870175,0.00019623,2]
[330506559,1719530953248,-18674.35129825,0.00019623,2]
[330506560,1719530953271,-389.32318589,0.00020172,2]
[330506561,1719530953292,-312.575527,0.00020822,2]
[330506562,1719530953314,-165.748183,0.00021096,2]
[330506563,1719530955108,-221.587696,0.00023869,2]
[330506564,1719530955131,-389.32318589,0.00025432,2]
[330506565,1719530965114,-267.99732879,0.00028,2]
[330506566,1719530965136,-190.68525851,0.00028183,2]
[330506567,1719530965157,-153.58983743,0.00028221,2]
[330506568,1719530965180,-152.88218131,0.00028355,2]
[330506569,1719530965202,-153.79688952,0.00028424,2]
[330506570,1719530965223,-153.58983743,0.00028979,2]
[330506571,1719530965244,-153.79688952,0.00029169,2]
[330506572,1719530965264,-152.88218131,0.00029191,2]
[330506573,1719530973115,-162.79161852,0.00029697,2]
[330506574,1719530973137,-153.58983743,0.00030099,7]
[330506608,1719531032665,-1018.33406931,0.00030826,4]
[330506610,1719531032675,-1455.15088617,0.00030826,4]
[330506626,1719531032895,-3057.26,0.00030826,4]
[330506627,1719531032905,-334.86214888,0.00030826,4]
[330506628,1719531032917,-311.85571846,0.00030826,4]
[330506629,1719531032927,-152.88218131,0.00032016,7]
[330506630,1719531032936,-484.95531122,0.000325,60]
[330506631,1719531032946,-153.58983743,0.00033195,7]
[330506632,1719531032954,-152.88218131,0.0003334,7]
[330506633,1719531032963,-153.79688952,0.00033372,7]
[330506634,1719531032972,-153.0,0.00033465,2]
[330506635,1719531032981,-153.79688952,0.00034093,7]
[330506636,1719531032990,-1477.89206263,0.00034467,4]
[330506658,1719531038739,-1237.10731166,0.00034467,4]
[330506659,1719531038752,-2558.74797974,0.00034467,4]
[330506660,1719531038762,-153.79688952,0.00034487,7]
[330506662,1719531038772,-1749.46392446,0.0003468,2]
[330506663,1719531038782,-1482.40812518,0.00034899,4]
[330506665,1719531038792,-153.79688952,0.00034974,7]
[330506667,1719531038802,-152.88218131,0.00035158,7]
[330506669,1719531038812,-153.58983743,0.0003519,7]
[330506671,1719531038822,-601.2066959,0.00035317,2]
[330506673,1719531038832,-153.58983743,0.00035409,7]
[330506674,1719531038842,-152.88218131,0.00035925,7]
[330506676,1719531038852,-153.58983743,0.00036019,7]
[330506678,1719531038862,-153.58983743,0.00036284,7]
[330506680,1719531038872,-162.79161852,0.00036677,7]
[330506681,1719531038882,-153.58983743,0.00036757,7]
[330506682,1719531038892,-153.58983743,0.00037145,7]
[330506683,1719531038902,-153.58983743,0.00037634,7]
[330506684,1719531038913,-244.97894054,0.00037899,4]
[330506685,1719531038924,-244.97894054,0.00037899,4]
[330506686,1719531038934,-2000.128109,0.00038,120]
[330506687,1719531038944,-152.88218131,0.00038092,7]
[330506688,1719531038954,-153.58983743,0.00038359,7]
[330506689,1719531038964,-153.58983743,0.00038657,7]
[330506690,1719531038974,-152.88218131,0.00038718,7]
[330506691,1719531038984,-152.88218131,0.00039024,7]
[330506692,1719531038993,-153.79688952,0.00039111,7]
[330506693,1719531039003,-152.88218131,0.00039135,7]
[330506694,1719531039013,-153.58983743,0.0003941,7]
[330506695,1719531039023,-153.79688952,0.00039793,7]
[330506696,1719531039034,-11115.74048265,0.000399,30]
[330506697,1719531039045,-153.79688952,0.00039971,7]
[330506698,1719531039054,-153.58983743,0.00040303,30]
[330506699,1719531039065,-152.88218131,0.00040327,30]
[330506700,1719531039075,-165.748183,0.00040411,2]
[330506701,1719531039084,-153.58983743,0.00040663,30]
[330506702,1719531039095,-5282.41580836,0.00040765,2]
[330506703,1719531039106,-5256.24088021,0.0004099,4]
[330506704,1719531039117,-18874.30006617,0.00041,5]
[330506705,1719531039127,-155.78155911,0.00041026,30]
[330506706,1719531039137,-308.44,0.00041075,3]
[330506707,1719531039148,-154.22,0.00041075,3]
[330506708,1719531039158,-759.96,0.00041075,3]
[330506709,1719531039168,-4019.24215276,0.00041085,7]
[330506710,1719531039180,-57818.6496823,0.00041085,4]
[330506711,1719531039191,-216.74,0.00041094,2]
[330506712,1719531039202,-3158.4215966,0.00041095,7]
[330506713,1719531039213,-453.67502068,0.00041095,120]
[330506714,1719531039223,-500.0,0.00041095,120]
[330506715,1719531039362,-447.59457803,0.00041095,120]
[330506716,1719531039372,-500.0,0.00041095,120]
[330506717,1719531039383,-500.0,0.00041095,120]
[330506718,1719531039393,-500.0,0.00041095,120]
[330506719,1719531039404,-500.0,0.00041095,120]
[330506720,1719531039414,-500.0,0.00041095,120]
[330506721,1719531039424,-500.0,0.00041095,120]
[330506722,1719531039433,-500.0,0.00041095,120]
[330506723,1719531039443,-500.0,0.00041095,120]
[330506724,1719531039454,-761.01,0.00041095,120]
[330506725,1719531039464,-500.0,0.00041095,120]
[330506726,1719531039474,-500.0,0.00041095,120]
[330506727,1719531039485,-500.0,0.00041095,120]
[330506728,1719531039495,-500.0,0.00041095,120]
[330506729,1719531039505,-500.0,0.00041095,120]
[330506730,1719531039517,-500.0,0.00041095,120]
[330506731,1719531039527,-500.0,0.00041095,2]
[330506732,1719531039538,-500.0,0.00041095,120]
[330506733,1719531039554,-500.0,0.00041095,120]
[330506734,1719531039564,-500.0,0.00041095,120]
[330506735,1719531039576,-500.0,0.00041095,120]
[330506736,1719531039588,-500.0,0.00041095,120]
[330506737,1719531039599,-500.0,0.00041095,120]
[330506738,1719531039609,-500.0,0.00041095,120]
[330506739,1719531039620,-615.87,0.00041095,120]
[330506740,1719531039633,-648.58,0.00041095,120]
[330506741,1719531039644,-500.0,0.00041095,120]
[330506742,1719531039655,-1610.6,0.00041095,120]
[330506743,1719531039667,-500.0,0.00041095,120]
[330506744,1719531039679,-539.19,0.00041095,120]
[330506745,1719531039689,-500.0,0.00041095,120]
[330506746,1719531039700,-500.0,0.00041095,120]
[330506747,1719531039710,-500.0,0.00041095,120]
[330506748,1719531039721,-500.0,0.00041095,120]
[330506749,1719531039731,-500.0,0.00041095,20]
[330506750,1719531039742,-500.0,0.00041095,120]
[330506751,1719531039753,-500.0,0.00041095,120]
[330506752,1719531039764,-500.0,0.00041095,120]
[330506753,1719531039774,-2389.53,0.00041095,120]
[330506754,1719531039785,-500.0,0.00041095,120]
[330506755,1719531039795,-500.0,0.00041095,120]
[330506756,1719531039805,-500.0,0.00041095,120]
[330506757,1719531039816,-716.1,0.00041095,2]
[330506758,1719531039827,-501.49,0.00041095,120]
[330506759,1719531039837,-500.0,0.00041095,120]
[330506760,1719531039847,-528.63,0.00041095,120]
[330506761,1719531039858,-500.0,0.00041095,120]
[330506762,1719531039869,-250.0,0.00041095,120]
[330506763,1719531039880,-500.0,0.00041095,120]
[330506764,1719531039890,-500.0,0.00041095,120]
[330506765,1719531039900,-364.00985362,0.00041095,120]
[330506766,1719531039911,-501.92,0.00041095,120]
[330506767,1719531039921,-500.0,0.00041095,120]
[330506768,1719531039931,-783.39,0.00041095,120]
[330506769,1719531039941,-500.0,0.00041095,120]
[330506770,1719531039952,-16019.43,0.00041095,120]
[330506771,1719531039962,-16019.43,0.00041095,120]
[330506772,1719531039972,-16019.43,0.00041095,120]
[330506773,1719531039982,-500.0,0.00041095,120]
[330506774,1719531039992,-500.0,0.00041095,120]
[330506775,1719531040003,-500.0,0.00041095,120]
[330506776,1719531040014,-500.0,0.00041095,120]
[330506777,1719531040025,-500.0,0.00041095,120]
[330506778,1719531040035,-500.0,0.00041095,120]
[330506779,1719531040046,-1318.27,0.00041095,120]
[330506780,1719531040056,-500.0,0.00041095,120]
[330506781,1719531040067,-500.0,0.00041095,120]
[330506782,1719531040077,-500.0,0.00041095,120]
[330506783,1719531040088,-540.81,0.00041095,120]
[330506784,1719531040098,-500.0,0.00041095,120]
[330506785,1719531040108,-500.0,0.00041095,120]
[330506786,1719531040119,-500.0,0.00041095,120]
[330506787,1719531040130,-500.0,0.00041095,120]
[330506788,1719531040141,-500.0,0.00041095,30]
[330506789,1719531040153,-500.0,0.00041095,120]
[330506790,1719531040164,-500.0,0.00041095,120]
[330506791,1719531040177,-500.0,0.00041095,120]
[330506792,1719531040188,-500.0,0.00041095,120]
[330506793,1719531040200,-500.0,0.00041095,120]
[330506794,1719531040214,-500.0,0.00041095,120]
[330506795,1719531040226,-562.47531205,0.00041095,120]
[330506796,1719531040238,-500.0,0.00041095,120]
[330506797,1719531040249,-500.0,0.00041095,120]
[330506798,1719531040260,-595.02170999,0.00041095,120]